bitfinex-derivatives/quotes_ETHF0:USTF0_20240831
["timestamp","ask_amount","ask_price","bid_price","bid_amount"]
[1725142044671,0.4802,2519.8,2519.4,0.57817704]
[1725142044858,0.4802,2519.8,2519.3,0.23817]
[1725142045160,0.4802,2519.8,2519.4,0.57817458]
[1725142045348,0.4802,2519.8,2519.2,2.05107]
[1725142045547,0.4802,2519.8,2519.3,0.57818198]
[1725142045754,0.4802,2519.8,2519.4,0.57818198]
[1725142045954,0.4802,2519.8,2519.2,2.05107]
[1725142046256,0.4802,2519.8,2519.3,0.57819593]
[1725142046452,0.4802,2519.8,2519.4,0.57819593]
[1725142046659,0.4802,2519.8,2519.3,0.23817]
[1725142046856,0.4802,2519.8,2519.5,0.23815]
[1725142047360,4.449,2519.8,2519.5,0.23815]
[1725142048064,4.449,2519.8,2519.4,0.23815]
[1725142048258,0.4802,2519.8,2519.4,0.23815]
[1725142048767,0.4802,2519.8,2519.5,0.516]
[1725142049264,4.449,2519.8,2519.5,0.516]
[1725142051371,0.4802,2519.8,2519.5,0.516]
[1725142051863,0.23813,2519.7,2519.2,3.2078]
[1725142052078,0.23813,2519.7,2519.3,0.57820161]
[1725142052079,6.07431167,2519.7,2519.3,0.57820161]
[1725142052260,6.07431167,2519.7,2519.2,3.2078]
[1725142052468,6.07431167,2519.7,2519.3,0.57824157]
[1725142052770,6.07431167,2519.7,2519.2,3.2078]
[1725142053069,6.07431167,2519.7,2519.3,0.57824005]
[1725142053255,6.07431167,2519.7,2519.2,3.44598]
[1725142053568,6.07431167,2519.7,2519.3,0.57824524]
[1725142053773,6.07431167,2519.7,2519.2,3.44598]
[1725142053962,6.07431167,2519.7,2519.3,0.57824844]
[1725142054163,6.07431167,2519.7,2519.2,3.2078]
[1725142054361,6.07431167,2519.7,2519.3,0.57825188]
[1725142054562,6.07431167,2519.7,2519.2,3.2078]
[1725142054762,6.07431167,2519.7,2519.3,0.57825154]
[1725142054966,6.07431167,2519.7,2519.2,3.2078]
[1725142055169,6.07431167,2519.7,2519.3,0.57824589]
[1725142055472,6.07431167,2519.7,2519.2,3.2078]
[1725142055665,6.07431167,2519.7,2519.3,0.57824302]
[1725142055866,6.07431167,2519.7,2519.2,3.2078]
[1725142056165,0.23814,2519.6,2519.3,0.57824652]
[1725142056471,0.23814,2519.6,2519.2,3.2078]
[1725142056472,5.55700381,2519.5,2519.2,3.2078]
[1725142056670,6.29196381,2519.5,2518.9,1.0124]
[1725142056865,1.29,2519.3,2518.9,1.0124]
[1725142057469,0.4968,2519.2,2518.9,1.0124]
[1725142057676,1.0168,2519.1,2518.9,0.5001]
[1725142058370,1.0168,2519.1,2518.6,0.00595415]
[1725142058371,3.9696,2519.0,2518.6,1.53418415]
[1725142058564,4.26307569,2519.0,2518.7,0.816836]
[1725142058763,0.5115,2518.9,2518.8,0.578616]
[1725142059163,4.4819,2518.9,2518.8,0.578616]
[1725142059365,4.4819,2518.9,2518.7,0.23822]
[1725142059566,0.5115,2518.9,2518.6,0.00595415]
[1725142061166,0.74971,2518.9,2518.6,0.00595415]
[1725142061366,4.44973914,2518.8,2518.6,0.00595415]
[1725142061563,1.0004,2518.7,2518.6,0.00595415]
[1725142061969,4.9708,2518.7,2518.6,0.00595415]
[1725142063372,5.20903,2518.7,2518.6,0.00595415]
[1725142063577,4.9708,2518.7,2518.6,0.00595415]
[1725142067270,5.20903,2518.7,2518.6,0.00595415]
[1725142068775,0.23825,2518.4,2517.8,0.23831]
[1725142068980,0.9929,2518.3,2517.8,2.02591]
[1725142069180,1.5087,2518.3,2517.8,2.02591]
[1725142069385,1.74696,2518.3,2517.8,1.7876]
[1725142069679,1.74696,2518.3,2517.8,0.50355415]
[1725142069680,4.44532505,2518.2,2517.8,0.50355415]
[1725142072273,4.44532505,2518.2,2517.8,0.00595415]
[1725142073479,4.44532505,2518.2,2517.9,1.29]
[1725142074577,4.44532505,2518.2,2517.8,0.00595415]
[1725142074778,4.44532505,2518.2,2517.8,1.29595415]
[1725142080980,4.44532505,2518.2,2517.8,0.00595415]
[1725142101195,1.29,2518.0,2517.8,0.00595415]
[1725142101398,1.0121,2517.9,2517.8,0.00595415]
[1725142101604,1.5271,2517.9,2517.8,0.00595415]
[1725142108404,1.5271,2517.9,2517.8,0.58527602]
[1725142108607,1.5271,2517.9,2517.8,0.5852753]
[1725142112004,1.5271,2517.9,2517.8,0.00595415]
[1725142112503,1.5271,2517.9,2517.8,0.58529156]
[1725142115303,1.5271,2517.9,2517.8,0.00595415]
[1725142115506,1.5271,2517.9,2517.8,0.58531968]
[1725142118608,1.5271,2517.9,2517.8,0.58531074]
[1725142119007,5.7374,2517.9,2517.8,0.58531074]
[1725142121312,1.7654,2517.9,2517.8,0.58531074]
[1725142122212,1.7654,2517.9,2517.8,0.5853715]
[1725142122416,5.7374,2517.9,2517.8,0.5853715]
[1725142122612,10.04979419,2517.9,2517.8,0.5853715]
[1725142126421,10.04979419,2517.9,2517.8,0.00595415]
[1725142126611,9.81149419,2517.9,2517.8,0.58535618]
[1725142132219,9.81149419,2517.9,2517.8,0.00595415]
[1725142132422,9.81149419,2517.9,2517.8,0.58535462]
[1725142135414,9.81149419,2517.9,2517.8,0.00595415]
[1725142135612,9.81149419,2517.9,2517.8,0.58537645]
[1725142135809,9.81149419,2517.9,2517.8,0.00595415]
[1725142136215,9.81149419,2517.9,2517.8,0.58537115]
[1725142137227,5.83949419,2517.9,2517.8,0.58537115]
[1725142137419,9.81149419,2517.9,2517.8,0.58537115]
[1725142138925,9.81149419,2517.9,2517.8,0.00595415]
[1725142139227,9.81149419,2517.9,2517.8,0.58536264]
[1725142140019,1.0226,2517.9,2517.8,0.58536264]
[1725142141117,1.0226,2517.9,2517.8,0.00595415]
[1725142141927,1.0226,2517.9,2517.8,0.58535278]
[1725142144135,3.2078,2518.2,2517.8,5.40024014]
[1725142144440,3.2078,2518.2,2517.9,0.7145]
[1725142144623,3.2078,2518.2,2517.9,1.29380997]
[1725142144624,3.6853,2518.2,2517.9,1.29380997]
[1725142144817,3.6853,2518.2,2518.0,0.57930997]
[1725142145014,3.6853,2518.2,2517.9,0.7145]
[1725142145015,3.2078,2518.2,2518.1,0.81750053]
[1725142145224,0.00595415,2518.3,2518.2,0.23827]
[1725142145517,3.2078,2518.8,2518.3,0.23826]
[1725142145518,1.29,2518.8,2518.3,0.23826]
[1725142145723,1.29,2518.8,2518.4,1.42150645]
[1725142145921,1.29,2518.8,2518.5,0.57922053]
[1725142146122,1.29,2518.8,2518.4,0.4762]
[1725142146123,1.65130672,2518.8,2518.6,0.57922053]
[1725142146319,1.29,2518.8,2518.4,0.4762]
[1725142146525,1.29,2518.8,2518.5,0.57890631]
[1725142146722,1.29,2518.8,2518.4,0.4762]
[1725142146924,1.29,2518.8,2518.5,0.57890853]
[1725142147227,1.29,2518.8,2518.4,0.4762]
[1725142147429,1.29,2518.8,2518.5,0.57891089]
[1725142147618,0.72165415,2519.0,2518.4,0.71445]
[1725142147816,1.29,2518.7,2518.5,0.57891708]
[1725142148020,1.29,2518.7,2518.4,0.71445]
[1725142148225,1.29,2518.7,2518.5,0.57891504]
[1725142148423,1.29,2518.7,2518.4,0.4762]
[1725142149333,0.48345415,2519.0,2518.6,0.23823]
[1725142149524,1.77345415,2519.0,2518.6,0.23823]
[1725142149930,1.77345415,2519.0,2518.6,1.24403]
[1725142150329,1.77345415,2519.0,2518.7,0.23822]
[1725142150730,1.77345415,2519.0,2518.8,0.5134]
[1725142151031,0.00595415,2519.0,2518.8,0.5134]
[1725142151228,0.00595415,2519.0,2518.9,4.20781]
[1725142152328,0.00595415,2519.0,2518.9,3.9696]
[1725142152729,0.00595415,2519.0,2518.9,10.20781]
[1725142158245,0.00595415,2519.0,2518.9,4.20781]
[1725142179156,0.00595415,2519.0,2518.9,0.23821]
[1725142189368,0.00595415,2519.0,2518.9,0.81685327]
[1725142191266,0.00595415,2519.0,2518.9,1.65870419]
[1725142192365,0.00595415,2519.0,2518.9,1.65876201]
[1725142194560,0.00595415,2519.0,2518.9,2.04442458]
[1725142194870,0.00595415,2519.0,2518.9,1.65876201]
[1725142195363,0.00595415,2519.0,2518.9,2.04443893]
[1725142195563,0.00595415,2519.0,2518.9,0.62388432]
[1725142195764,0.00595415,2519.0,2518.9,2.04444721]
[1725142197865,0.00595415,2519.0,2518.9,2.65468846]
[1725142198062,0.00595415,2519.0,2518.9,2.04444721]
[1725142198261,0.00595415,2519.0,2518.9,2.65471008]
[1725142198859,0.00595415,2519.0,2518.9,1.65877289]
[1725142199158,0.00595415,2519.0,2518.9,1.65875756]
[1725142199360,0.00595415,2519.0,2518.9,1.23414811]
[1725142199561,0.00595415,2519.0,2518.9,2.07602826]
[1725142199761,0.00595415,2519.0,2518.9,2.6547211]
[1725142200261,0.00595415,2519.0,2518.9,6.6243211]
[1725142200464,0.00595415,2519.0,2518.9,16.65597336]
[1725142200865,0.00595415,2519.0,2518.9,19.33566768]
[1725142201061,1.5322,2519.5,2519.4,0.23816]
[1725142201264,1.5322,2519.5,2519.4,2.24226709]
[1725142201670,1.5322,2519.5,2519.4,2.71376709]
[1725142201873,1.5322,2519.5,2519.4,6.68256709]
[1725142202070,0.00595415,2519.7,2519.5,0.23814]
[1725142202269,0.00595415,2519.7,2519.6,1.41985309]
[1725142202667,0.00595415,2519.7,2519.6,5.38865309]
[1725142203375,0.00595415,2519.7,2519.6,1.41985309]
[1725142203577,0.00595415,2519.7,2519.6,5.38865309]
[1725142204177,0.00595415,2519.7,2519.6,5.38848664]
[1725142204667,0.00595415,2519.7,2519.6,3.9688]
[1725142204868,0.00595415,2519.7,2519.6,5.38850686]
[1725142205380,0.00595415,2519.7,2519.6,4.5471448]
[1725142205572,0.00595415,2519.7,2519.6,5.38847841]
[1725142205778,0.00595415,2519.7,2519.6,4.5471448]
[1725142206166,0.00595415,2519.7,2519.6,8.59628702]
[1725142206470,0.00595415,2519.7,2519.6,7.7549448]
[1725142207079,0.00595415,2519.7,2519.6,3.7861448]
[1725142207382,0.00595415,2519.7,2519.6,3.78620649]
[1725142208275,0.00595415,2519.7,2519.6,3.78618463]
[1725142210283,0.00595415,2519.7,2519.6,3.2078]
[1725142210791,0.00595415,2519.7,2519.6,3.78617634]
[1725142211188,0.00595415,2519.7,2519.6,3.2078]
[1725142217492,11.26475415,2519.7,2519.2,0.00595415]
[1725142217694,1.29,2519.4,2519.2,0.00595415]
[1725142217893,1.4244,2519.3,2519.2,0.00595415]
[1725142219095,5.394,2519.3,2519.2,0.00595415]
[1725142219294,17.19146941,2519.3,2519.2,0.00595415]
[1725142220296,15.90146941,2519.3,2519.2,0.00595415]
[1725142220503,9.90146941,2519.3,2519.2,0.00595415]
[1725142221099,9.66329941,2519.3,2519.2,0.00595415]
[1725142226306,5.394,2519.3,2519.2,0.00595415]
[1725142226692,1.4244,2519.3,2519.2,0.00595415]
[1725142227000,5.394,2519.3,2519.2,0.00595415]
[1725142234501,5.63217,2519.3,2519.2,0.00595415]
[1725142236800,5.394,2519.3,2519.2,0.00595415]
[1725142241106,1.4244,2519.3,2519.2,0.00595415]
[1725142244505,0.00595415,2519.7,2519.3,0.23817]
[1725142244824,1.45405415,2519.7,2519.3,0.23817]
[1725142245119,1.45405415,2519.7,2519.4,0.4909]
[1725142246016,1.45405415,2519.7,2519.4,1.21936]
[1725142246205,0.00595415,2519.7,2519.4,1.21936]
[1725142246411,0.00595415,2519.7,2519.5,0.5077]
[1725142263626,0.00595415,2519.7,2519.5,3.95365]
[1725142263826,0.00595415,2519.7,2519.6,4.20694]
[1725142264327,0.00595415,2519.7,2519.6,4.7855904]
[1725142264522,0.00595415,2519.7,2519.6,4.20694]
[1725142264721,0.00595415,2519.7,2519.6,4.78556923]
[1725142266328,0.00595415,2519.7,2519.6,4.20694]
[1725142268027,0.00595415,2519.7,2519.6,10.78553968]
[1725142268229,0.00595415,2519.7,2519.6,11.62717106]
[1725142268421,0.00595415,2519.7,2519.6,11.62714439]
[1725142269531,0.00595415,2519.7,2519.6,10.78553968]
[1725142276729,0.00595415,2519.7,2519.6,10.78560602]
[1725142279934,0.00595415,2519.7,2519.6,10.20694]
[1725142280139,0.00595415,2519.7,2519.6,10.78580175]
[1725142280532,0.00595415,2519.7,2519.5,3.2078]
[1725142290744,0.00595415,2519.7,2519.6,0.57982504]
[1725142293456,0.00595415,2519.7,2519.5,4.4978]
[1725142293653,0.00595415,2519.7,2519.6,0.57977708]
[1725142293952,0.00595415,2519.7,2519.6,1.15954307]
[1725142296742,0.00595415,2519.7,2519.6,0.57977708]
[1725142296949,0.00595415,2519.7,2519.6,1.15958863]
[1725142300154,0.00595415,2519.7,2519.6,0.57977708]
[1725142300453,0.00595415,2519.7,2519.6,1.15955695]
[1725142303257,0.00595415,2519.7,2519.6,0.57977987]
[1725142303764,0.00595415,2519.7,2519.5,4.4978]
[1725142303958,0.00595415,2519.7,2519.6,0.57978192]
[1725142304462,0.00595415,2519.7,2519.6,1.42317563]
[1725142305054,0.00595415,2519.7,2519.6,4.63097563]
[1725142305254,0.00595415,2519.7,2519.6,4.63081721]
[1725142305455,0.00595415,2519.7,2519.6,3.78758192]
[1725142307060,0.00595415,2519.7,2519.6,0.57978192]
[1725142308651,0.24408415,2519.7,2519.6,0.57978192]
[1725142308861,0.24408415,2519.7,2519.3,1.7803]
[1725142309157,0.4775,2519.6,2519.4,0.57977014]
[1725142309358,0.4775,2519.6,2519.3,1.7803]
[1725142309359,0.5131,2519.5,2519.3,1.7803]
[1725142309558,0.4794,2519.4,2519.3,1.7803]
[1725142309761,0.4794,2519.4,2519.3,3.20353183]
[1725142310368,0.4794,2519.4,2519.3,7.17313183]
[1725142310860,0.5131,2519.5,2519.3,7.17313183]
[1725142311067,0.5131,2519.5,2519.4,0.57977896]
[1725142313670,0.5131,2519.5,2519.3,1.7803]
[1725142313863,0.5131,2519.5,2519.4,0.57951727]
[1725142316968,0.5131,2519.5,2519.3,1.7803]
[1725142317161,0.5131,2519.5,2519.4,0.5794935]
[1725142318864,0.00595415,2519.7,2519.4,0.8176535]
[1725142319072,0.00595415,2519.7,2519.5,1.8694935]
[1725142319262,0.00595415,2519.7,2519.5,1.29]
[1725142319460,0.00595415,2519.7,2519.6,0.4901]
[1725142321966,0.00595415,2519.7,2519.6,2.05763224]
[1725142323571,0.00595415,2519.7,2519.6,2.29577224]
[1725142323772,0.00595415,2519.7,2519.6,10.31498822]
[1725142324275,0.00595415,2519.7,2519.6,10.70092082]
[1725142325876,0.00595415,2519.7,2519.6,9.27834234]
[1725142326076,0.00595415,2519.7,2519.6,10.69802362]
[1725142329175,0.00595415,2519.7,2519.6,8.89294]
[1725142329374,0.00595415,2519.7,2519.6,10.6973143]
[1725142331876,0.00595415,2519.7,2519.6,16.6973143]
[1725142332483,0.00595415,2519.7,2519.6,15.2781878]
[1725142332676,0.00595415,2519.7,2519.6,16.69725876]
[1725142332884,0.00595415,2519.7,2519.6,17.27532211]
[1725142333084,0.00595415,2519.7,2519.6,16.69723385]
[1725142333787,0.00595415,2519.7,2519.6,16.69721721]
[1725142334982,0.00595415,2519.7,2519.6,17.30652649]
[1725142335887,0.00595415,2519.7,2519.6,15.88726267]
[1725142336184,0.00595415,2519.7,2519.6,17.30570164]
[1725142337285,0.00595415,2519.7,2519.6,16.69643144]
[1725142338983,0.00595415,2519.7,2519.6,17.30726387]
[1725142339180,0.00595415,2519.7,2519.6,16.7036174]
[1725142339383,0.00595415,2519.7,2519.6,17.31531321]
[1725142340788,0.00595415,2519.7,2519.6,14.89294]
[1725142340979,0.00595415,2519.7,2519.6,16.73794984]
[1725142341288,0.00595415,2519.7,2519.6,17.31895931]
[1725142341586,0.00595415,2519.7,2519.6,16.70634337]
[1725142342592,0.00595415,2519.7,2519.6,15.47390094]
[1725142342891,0.00595415,2519.7,2519.6,16.70619141]
[1725142346003,0.00595415,2519.7,2519.6,15.28008929]
[1725142346293,0.00595415,2519.7,2519.6,16.31910545]
[1725142349400,0.00595415,2519.7,2519.6,16.31904632]
[1725142355097,0.00595415,2519.7,2519.6,10.31904632]
[1725142355886,0.00595415,2519.7,2519.6,9.73807631]
[1725142356090,0.00595415,2519.7,2519.6,10.3190219]
[1725142356500,0.00595415,2519.7,2519.6,10.70614912]
[1725142358488,0.5146,2520.3,2520.1,0.23808]
[1725142358695,0.5146,2520.3,2520.2,1.87094559]
[1725142359105,0.5146,2520.3,2520.2,1.87074529]
[1725142360789,0.5146,2520.3,2520.2,0.58074529]
[1725142360999,0.5146,2520.3,2520.0,3.4459]
[1725142361299,0.5146,2520.3,2520.2,1.29]
[1725142361691,0.5146,2520.3,2520.2,1.87080125]
[1725142362201,0.5146,2520.3,2520.2,1.29]
[1725142362402,0.5146,2520.3,2520.2,1.87080595]
[1725142365699,0.5146,2520.3,2520.2,1.29]
[1725142365891,0.5146,2520.3,2520.2,1.87081189]
[1725142368303,0.5146,2520.3,2520.2,2.71394355]
[1725142368598,0.5146,2520.3,2520.2,1.87081189]
[1725142368996,0.5146,2520.3,2520.2,1.29]
[1725142369305,0.5146,2520.3,2520.2,2.71266338]
[1725142374404,0.5146,2520.3,2520.2,3.09882208]
[1725142375508,0.5146,2520.3,2520.2,1.29]
[1725142375698,0.5146,2520.3,2520.2,1.67616047]
[1725142375901,0.5146,2520.3,2520.2,3.09871613]
[1725142376601,0.5146,2520.3,2520.2,3.33679613]
[1725142376798,0.49585415,2520.5,2520.4,0.23806]
[1725142376998,0.49585415,2520.5,2520.4,6.54457613]
[1725142379009,0.49585415,2520.5,2520.4,6.54411667]
[1725142383411,0.49585415,2520.5,2520.4,6.1579562]
[1725142383714,0.49585415,2520.5,2520.4,6.54394603]
[1725142384012,0.49585415,2520.5,2520.4,6.1579562]
[1725142390220,0.49585415,2520.5,2520.4,5.9198962]
[1725142390915,0.49585415,2520.5,2520.4,4.4978]
[1725142391118,0.49585415,2520.5,2520.4,5.91963668]
[1725142391314,0.49585415,2520.5,2520.4,4.4978]
[1725142391614,0.49585415,2520.5,2520.4,5.9196561]
[1725142394215,0.49585415,2520.5,2520.4,4.4978]
[1725142394513,0.49585415,2520.5,2520.4,5.91970391]
[1725142397126,0.00595415,2520.5,2520.4,5.91970391]
[1725142398629,0.00595415,2520.5,2520.4,6.15776391]
[1725142398826,0.00595415,2520.5,2520.4,10.27278385]
[1725142400037,0.00595415,2520.5,2520.4,10.51084385]
[1725142401139,0.00595415,2520.5,2520.4,10.51058782]
[1725142404337,0.00595415,2520.5,2520.4,10.51233189]
[1725142405422,0.00595415,2520.5,2520.4,10.12645195]
[1725142407724,0.00595415,2520.5,2520.4,10.51282709]
[1725142407936,0.00595415,2520.5,2520.4,10.12645195]
[1725142408331,0.00595415,2520.5,2520.4,10.51283398]
[1725142414127,0.00595415,2520.5,2520.4,8.70306]
[1725142414331,0.00595415,2520.5,2520.4,10.51342901]
[1725142415236,0.00595415,2520.5,2520.4,6.54622901]
[1725142417738,0.00595415,2520.5,2520.4,6.54622822]
[1725142419340,0.00595415,2520.5,2520.4,7.15777224]
[1725142420850,0.48375415,2520.5,2520.4,5.7339055]
[1725142421050,0.48375415,2520.5,2520.4,7.15829213]
[1725142422648,0.48375415,2520.5,2520.4,8.18962492]
[1725142424252,0.48375415,2520.5,2520.4,8.19013422]
[1725142427546,0.48375415,2520.5,2520.4,5.76719279]
[1725142427750,0.48375415,2520.5,2520.4,8.19048173]
[1725142430951,0.48375415,2520.5,2520.4,6.76580887]
[1725142431154,0.48375415,2520.5,2520.4,8.1904675]
[1725142432150,0.00595415,2520.5,2520.4,8.1904675]
[1725142432357,0.4939,2520.6,2520.5,0.23805]
[1725142432654,0.4939,2520.6,2520.5,3.6926575]
[1725142432855,0.9599,2520.6,2520.5,5.67675944]
[1725142433254,0.9599,2520.6,2520.5,3.6926575]
[1725142434150,0.9599,2520.6,2520.5,5.6767666]
[1725142434550,0.9599,2520.6,2520.5,3.6926575]
[1725142434751,0.9599,2520.6,2520.5,5.67677176]
[1725142434946,0.4756,2520.7,2520.6,0.23805]
[1725142435151,0.4756,2520.7,2520.6,3.95132471]
[1725142435344,0.9651,2520.7,2520.6,3.95132471]
[1725142435749,1.4684,2520.7,2520.6,4.14697869]
[1725142437466,1.4684,2520.7,2520.6,3.53466851]
[1725142437761,1.4684,2520.7,2520.6,4.14640707]
[1725142440661,1.4684,2520.7,2520.6,4.14642626]
[1725142441467,1.4684,2520.7,2520.6,3.71272228]
[1725142442866,1.4684,2520.7,2520.6,1.87023677]
[1725142443158,1.4684,2520.7,2520.6,3.71273105]
[1725142446151,1.4684,2520.7,2520.6,3.71277514]
[1725142449358,1.4684,2520.7,2520.6,3.71277826]
[1725142452570,1.4684,2520.7,2520.6,6.92057826]
[1725142452863,1.4684,2520.7,2520.6,6.92032652]
[1725142456062,1.4684,2520.7,2520.6,4.4978]
[1725142456263,1.4684,2520.7,2520.6,6.91996101]
[1725142461282,1.4684,2520.7,2520.6,4.4978]
[1725142461467,1.4684,2520.7,2520.6,7.76363365]
[1725142461667,1.4684,2520.7,2520.6,8.34370017]
[1725142462777,1.4684,2520.7,2520.6,7.34563518]
[1725142462974,1.4684,2520.7,2520.6,9.34181765]
[1725142463377,1.4684,2520.7,2520.6,9.57986765]
[1725142463873,1.4684,2520.7,2520.6,9.34181765]
[1725142464284,3.2078,2521.4,2520.9,0.23802]
[1725142464578,1.18915,2523.0,2521.2,1.29]
[1725142464579,3.2078,2522.0,2521.2,1.29]
[1725142464779,0.5171,2521.6,2521.4,3.2078]
[1725142464981,0.5171,2521.6,2521.5,1.81043616]
[1725142465174,0.5171,2521.6,2521.5,1.42392432]
[1725142466572,0.5171,2521.6,2521.5,1.42269223]
[1725142467178,0.5171,2521.6,2521.5,2.71269223]
[1725142469468,0.5171,2521.6,2521.5,1.86957796]
[1725142469672,0.5171,2521.6,2521.5,1.86956212]
[1725142469868,0.5171,2521.6,2521.5,2.71262972]
[1725142470282,0.5171,2521.6,2521.5,1.86956212]
[1725142474188,0.5171,2521.6,2521.5,2.10752212]
[1725142474989,0.5171,2521.6,2521.5,2.95035088]
[1725142475183,0.5171,2521.6,2521.5,2.10752212]
[1725142475385,3.2078,2522.3,2521.6,0.23795]
[1725142475593,0.4998,2522.2,2522.1,1.29]
[1725142476089,10.4646,2522.2,2522.1,1.29]
[1725142476388,4.4646,2522.2,2522.1,1.29]
[1725142476583,4.4646,2522.2,2522.1,1.5279]
[1725142476786,4.4646,2522.2,2522.1,1.29]
[1725142477397,4.4646,2522.2,2522.1,1.5279]
[1725142477694,4.4646,2522.2,2522.1,1.29]
[1725142478388,4.4646,2522.2,2522.1,1.5279]
[1725142479085,4.4646,2522.2,2522.1,1.29]
[1725142480095,3.2078,2523.0,2522.1,5.2548]
[1725142480283,1.0086,2522.8,2522.5,7.69070614]
[1725142480595,1.0086,2522.8,2522.5,7.92856614]
[1725142481291,1.0086,2522.8,2522.7,1.29]
[1725142481794,4.9726,2522.8,2522.7,1.29]
[1725142485181,1.0086,2522.8,2522.7,1.29]
[1725142496317,1.0086,2522.8,2522.6,3.6879]
[1725142496519,1.0086,2522.8,2522.7,1.29]
[1725142500426,1.0086,2522.8,2522.2,3.2078]
[1725142500427,0.23789,2522.3,2522.2,3.2078]
[1725142500925,10.20269,2522.3,2522.2,3.2078]
[1725142502321,0.23789,2522.2,2522.1,1.29]
[1725142502531,5.66889,2522.2,2522.1,1.29]
[1725142502721,11.66889,2522.2,2522.1,1.29]
[1725142503023,5.66889,2522.2,2522.1,1.29]
[1725142503422,5.431,2522.2,2522.1,1.29]
[1725142508529,11.431,2522.2,2521.6,3.2078]
[1725142508724,0.23791,2522.1,2522.0,1.29]
[1725142509227,4.20271,2522.1,2522.0,1.29]
[1725142511833,3.9648,2522.1,2522.0,1.29]
[1725142514425,1.4662,2522.2,2522.0,1.29]
[1725142514426,0.9656,2522.2,2522.0,1.29]
[1725142514622,0.9656,2522.2,2522.1,0.5023]
[1725142514925,4.9304,2522.2,2522.1,0.5023]
[1725142515321,0.9656,2522.2,2522.1,0.5023]
[1725142518130,0.9656,2522.2,2522.0,1.7952]
[1725142519233,0.9656,2522.2,2522.0,1.29]
[1725142519432,0.4798,2522.1,2522.0,1.29]
[1725142520432,0.4798,2522.1,2521.6,3.2078]
[1725142520433,0.23792,2522.0,2521.6,3.2078]
[1725142520732,0.23792,2522.0,2521.9,1.29]
[1725142521134,4.20272,2522.0,2521.9,1.29]
[1725142525738,3.9648,2522.0,2521.9,1.29]
[1725142526337,3.9648,2522.0,2521.6,3.6818]
[1725142526540,0.23793,2521.9,2521.6,4.9718]
[1725142526737,0.482,2521.8,2521.6,4.9718]
[1725142527039,0.9585,2521.8,2521.6,4.9718]
[1725142527748,0.23797,2521.5,2521.3,0.00595415]
[1725142528034,1.0141,2521.4,2521.3,0.00595415]
[1725142528447,11.21847,2521.4,2521.3,0.00595415]
[1725142528940,4.4751,2521.4,2521.3,0.00595415]
[1725142536451,5.22277,2521.4,2521.3,0.00595415]
[1725142538940,0.238,2521.1,2520.9,1.29]
[1725142539254,0.9696,2521.0,2520.7,1.29]
[1725142539438,0.4819,2520.9,2520.7,1.29]
[1725142544153,0.71992,2520.9,2520.7,1.29]
[1725142545050,0.71992,2520.9,2520.5,4.97735415]
[1725142545051,0.4819,2520.9,2520.5,4.97735415]
[1725142545248,0.23804,2520.7,2520.5,3.21375415]
[1725142545442,0.23805,2520.6,2520.5,3.21375415]
[1725142545644,0.72545,2520.6,2520.5,3.21375415]
[1725142545852,4.69265,2520.6,2520.5,3.21375415]
[1725142548851,19.48504764,2520.6,2519.5,4.05242857]
[1725142549047,0.2381,2520.1,2519.8,0.507]
[1725142549252,3.4459,2520.1,2519.8,0.507]
[1725142550453,0.2381,2520.0,2519.8,0.507]
[1725142551359,3.4459,2520.1,2519.8,0.507]
[1725142551958,3.9363,2520.1,2519.8,0.507]
[1725142552257,8.55205241,2520.0,2519.7,0.00595415]
[1725142552461,0.4807,2519.9,2519.7,0.00595415]
[1725142552662,4.4495,2519.9,2519.7,0.00595415]
[1725142552956,3.9688,2519.8,2519.7,0.48745415]
[1725142553157,0.4807,2519.9,2519.7,0.48745415]
[1725142553158,4.4495,2519.9,2519.7,0.48745415]
[1725142553554,3.9363,2520.1,2519.7,0.48745415]
[1725142553858,3.6982,2520.1,2519.7,0.48745415]
[1725142554063,3.93629,2520.1,2519.7,0.48745415]
[1725142555866,3.6982,2520.1,2519.7,0.48745415]
[1725142558055,0.23811,2520.0,2519.7,0.48745415]
[1725142558250,0.74991,2520.0,2519.7,0.48745415]
[1725142559870,0.23812,2519.8,2519.7,0.00595415]
[1725142560160,0.74991,2520.0,2519.7,0.00595415]
[1725142560357,0.74991,2520.0,2519.7,0.52275415]
[1725142560358,0.23811,2520.0,2519.7,0.52275415]
[1725142561258,0.2381,2520.0,2519.7,0.52275415]
[1725142562266,3.6982,2520.1,2519.7,0.52275415]
[1725142563268,3.93629,2520.1,2519.7,0.52275415]
[1725142564170,6.2978,2519.8,2518.8,4.113]
[1725142564462,0.23815,2519.5,2519.1,0.4988]
[1725142564663,3.44595,2519.5,2519.1,0.4988]
[1725142564862,3.2078,2519.5,2519.1,0.4988]
[1725142565769,3.44595,2519.5,2519.1,0.4988]
[1725142566361,0.23815,2519.5,2519.1,0.4988]
[1725142566669,0.24409415,2519.6,2519.1,0.4988]
[1725142567469,0.75869415,2519.6,2519.1,0.4988]
[1725142567667,3.2078,2519.5,2519.1,0.4988]
[1725142571163,7.1774,2519.5,2519.0,0.00595415]
[1725142571366,4.76055011,2519.4,2519.0,0.00595415]
[1725142571578,4.99871011,2519.4,2519.0,0.00595415]
[1725142571765,0.4803,2519.3,2519.0,0.00595415]
[1725142572462,0.5052,2519.2,2519.0,0.00595415]
[1725142574965,3.5703,2519.3,2519.0,0.00595415]
[1725142581871,4.0639,2519.3,2519.0,0.00595415]
[1725142583674,3.2078,2519.2,2519.0,0.00595415]
[1725142584175,4.0639,2519.3,2519.0,0.00595415]
[1725142585671,4.0639,2519.3,2519.0,0.48605415]
[1725142585872,4.0639,2519.3,2519.1,0.5026]
[1725142586273,1.29,2519.2,2519.1,0.5026]
[1725142588679,1.29,2519.2,2519.0,0.00595415]
[1725142589386,1.29,2519.1,2519.0,0.00595415]
[1725142589882,0.23818,2519.2,2519.0,0.00595415]
[1725142590076,0.9739,2519.3,2519.0,0.00595415]
[1725142590077,1.21207,2519.3,2519.0,0.00595415]
[1725142590274,1.29,2519.1,2519.0,0.00595415]
[1725142590480,1.7703,2519.3,2519.0,0.00595415]
[1725142592388,0.4803,2519.3,2519.0,0.00595415]
[1725142600394,0.00595415,2519.6,2519.1,5.39568972]
[1725142600694,0.00595415,2519.6,2519.5,0.23815]
[1725142600882,0.00595415,2519.6,2519.5,4.78798712]